bitfinex-derivatives/quotes_ETHF0:USTF0_20210705
["timestamp","ask_amount","ask_price","bid_price","bid_amount"]
[1625461027417,8.77584,2262.3,2262.2,0.40851483]
[1625461027772,7.77584,2262.3,2262.2,0.40851483]
[1625461028774,4.41054,2262.3,2262.2,0.40851483]
[1625461029079,52.2502,2263.2,2262.2,0.40851483]
[1625461029331,1.0,2263.1,2262.2,0.40851483]
[1625461030582,4.41054,2262.3,2262.2,0.40851483]
[1625461032537,1.0,2262.7,2262.2,0.40851483]
[1625461032638,2.20527,2262.5,2262.2,0.40851483]
[1625461034599,2.20527,2262.4,2262.2,2.61378483]
[1625461039176,2.20527,2262.4,2262.2,0.40851483]
[1625461039373,1.0,2262.3,2262.2,0.40851483]
[1625461039472,1.0,2262.3,2262.0,1.43251483]
[1625461039677,1.0,2262.3,2262.0,0.55861483]
[1625461039871,2.20527,2262.4,2262.0,0.55861483]
[1625461040272,1.0,2262.3,2262.0,0.55861483]
[1625461040675,2.20527,2262.1,2262.0,0.55861483]
[1625461042074,2.20527,2262.4,2262.0,0.55861483]
[1625461042185,1.82036328,2263.2,2262.0,0.55861483]
[1625461042275,1.82036328,2263.2,2262.0,3.21911483]
[1625461042577,3.37959812,2263.5,2262.0,3.21911483]
[1625461042578,1.82004983,2263.5,2262.0,3.21911483]
[1625461042679,2.20527,2262.4,2262.3,2.20527]
[1625461042978,2.20527,2262.6,2262.3,2.20527]
[1625461044630,2.20527,2262.6,2262.3,4.41054]
[1625461045232,2.20527,2262.8,2262.3,4.41054]
[1625461045233,1.0,2263.3,2262.3,4.41054]
[1625461045730,51.5969,2263.2,2262.3,4.41054]
[1625461045831,1.0,2263.1,2262.3,4.41054]
[1625461046133,1.82005878,2263.7,2262.3,4.41054]
[1625461046233,2.82009291,2263.6,2262.3,7.78854]
[1625461046683,2.82009291,2263.6,2262.6,2.20527]
[1625461046684,2.20527,2262.7,2262.6,2.20527]
[1625461047585,0.8941,2263.3,2262.6,2.20527]
[1625461047688,2.60037497,2263.8,2262.7,1.0]
[1625461047787,1.82014389,2263.8,2262.7,1.0]
[1625461047988,1.82014389,2263.8,2262.7,1.8889]
[1625461048288,1.82014389,2263.8,2263.7,39.5427]
[1625461048387,1.82014389,2263.8,2263.7,43.2688]
[1625461048487,1.8197494,2264.5,2263.7,43.2688]
[1625461048686,1.8197494,2264.5,2264.4,4.41054]
[1625461048786,1.8197494,2264.5,2264.4,8.65354]
[1625461048937,2.20527,2264.7,2264.4,8.65354]
[1625461050040,2.20527,2264.7,2264.4,3.243]
[1625461050139,2.20527,2264.7,2263.9,1.0]
[1625461050689,2.20527,2264.2,2264.1,2.20527]
[1625461050790,2.20527,2264.2,2264.1,3.20527]
[1625461052143,2.20527,2264.2,2264.1,2.20527]
[1625461052642,2.20527,2264.2,2264.1,3.20527]
[1625461052742,4.41054,2264.2,2264.1,3.20527]
[1625461053194,4.41054,2264.2,2264.1,1.0]
[1625461054396,2.20527,2264.2,2264.1,1.0]
[1625461056622,2.20527,2264.2,2263.9,4.41054]
[1625461056724,2.20527,2264.0,2263.4,2.20527]
[1625461056923,2.20527,2264.0,2263.2,2.20527]
[1625461057579,2.20527,2264.0,2262.2,1.79316441]
[1625461057680,2.20527,2264.0,2262.0,3.12027828]
[1625461057681,42.0076,2263.4,2262.5,1.0]
[1625461057778,46.3293,2263.4,2262.5,1.0]
[1625461057876,45.4541,2263.4,2262.1,1.79355598]
[1625461057980,3.4465,2263.4,2262.1,1.79355598]
[1625461058177,3.4465,2263.4,2262.0,3.12027828]
[1625461058178,3.4465,2263.4,2262.0,0.55861483]
[1625461058779,2.20527,2263.0,2262.8,2.20527]
[1625461059078,2.20527,2263.0,2262.8,3.20527]
[1625461059781,0.8845,2263.9,2262.8,3.20527]
[1625461060636,0.8845,2263.9,2262.8,2.20527]
[1625461060735,2.20527,2262.9,2262.8,4.41054]
[1625461061687,2.20527,2262.9,2262.8,5.41054]
[1625461062987,2.20527,2263.1,2262.8,5.41054]
[1625461064590,2.20527,2263.1,2262.3,1.0]
[1625461064689,4.76687,2263.1,2262.3,1.0]
[1625461064790,4.41054,2262.4,2262.3,1.0]
[1625461064890,7.28684,2262.4,2262.3,1.0]
[1625461065645,7.28684,2262.4,2262.1,2.20527]
[1625461066196,7.28684,2262.4,2262.2,1.0]
[1625461066295,7.28684,2262.4,2262.1,2.20527]
[1625461080543,4.41054,2262.4,2262.1,3.20527]
[1625461082846,4.41054,2262.4,2262.2,2.20527]
[1625461082944,4.41054,2262.4,2262.2,3.20527]
[1625461085706,4.41054,2262.4,2262.2,2.20527]
[1625461086009,4.41054,2262.4,2262.3,1.0]
[1625461087921,4.41054,2262.4,2262.2,2.20527]
[1625461088022,6.61754,2262.4,2262.2,2.20527]
[1625461093091,6.61754,2262.4,2262.0,0.55861483]
[1625461093637,55.4831,2261.8,2261.7,1.09642966]
[1625461093736,57.8336,2261.8,2261.7,1.09642966]
[1625461094538,57.8336,2261.8,2260.6,1.81084119]
[1625461094637,57.8336,2261.8,2260.5,1.81114784]
[1625461094736,58.7257,2261.8,2260.5,1.81114784]
[1625461095095,2.20527,2261.5,2261.3,2.20527]
[1625461095195,2.20527,2261.5,2261.4,1.0]
[1625461095490,2.20527,2261.5,2261.3,4.59317]
[1625461097090,4.41054,2261.5,2261.3,4.59317]
[1625461097640,4.41054,2261.5,2261.3,4.24507]
[1625461098492,4.41054,2261.5,2261.3,2.3879]
[1625461098594,4.41054,2261.5,2261.2,1.43251505]
[1625461099947,4.41054,2261.5,2261.2,2.43251505]
[1625461101155,4.41054,2261.5,2261.4,5.40097]
[1625461101252,4.41054,2261.5,2261.4,6.40097]
[1625461101654,2.20527,2261.5,2261.4,6.40097]
[1625461102755,2.20527,2261.5,2261.4,5.40097]
[1625461103055,2.20527,2261.5,2261.4,6.40097]
[1625461103156,2.20527,2261.5,2261.4,8.60624]
[1625461107264,2.20527,2261.8,2261.4,8.60624]
[1625461108120,13.7365,2262.9,2261.4,8.60624]
[1625461109232,2.20527,2262.4,2262.3,2.20527]
[1625461109335,2.20527,2262.4,2262.3,5.68217]
[1625461110137,2.20527,2262.4,2262.3,3.4769]
[1625461111187,4.41054,2262.4,2262.3,3.4769]
[1625461112940,4.41054,2262.4,2261.8,1.0]
[1625461113192,4.41054,2261.9,2261.8,1.0]
[1625461114903,4.41054,2261.9,2261.7,2.20527]
[1625461115353,4.41054,2261.9,2261.3,1.0]
[1625461116211,4.41054,2261.9,2260.4,1.81723992]
[1625461116308,4.41054,2261.9,2261.3,1.0]
[1625461117262,4.41054,2261.4,2261.3,3.20527]
[1625461118617,3.2051,2262.3,2261.3,3.20527]
[1625461119223,2.20527,2261.8,2261.6,2.20527]
[1625461119425,2.20527,2261.8,2261.6,3.20527]
[1625461119729,2.20527,2261.8,2261.6,1.0]
[1625461120527,2.20527,2261.8,2260.4,1.81479222]
[1625461120630,2.20527,2261.8,2261.3,1.0]
[1625461121282,2.20527,2261.8,2261.4,2.20527]
[1625461121384,2.20527,2261.8,2261.5,1.0]
[1625461123244,2.20527,2261.6,2261.5,1.0]
[1625461123964,2.20527,2261.6,2261.4,2.20527]
[1625461124148,2.20527,2261.6,2261.5,1.0]
[1625461125149,2.20527,2261.6,2261.4,2.20527]
[1625461125350,2.20527,2261.6,2261.2,3.63778505]
[1625461126302,2.20527,2261.6,2261.3,1.0]
[1625461127303,2.20527,2261.4,2261.3,1.0]
[1625461129309,1.20527,2261.4,2261.2,3.63778505]
[1625461133620,2.20527,2261.4,2261.2,3.63778505]
[1625461133969,1.20527,2261.4,2261.2,3.63778505]
[1625461134670,2.20527,2261.4,2261.2,3.63778505]
[1625461135073,1.20527,2261.4,2261.2,3.63778505]
[1625461135474,2.20527,2261.4,2261.2,3.63778505]
[1625461136025,1.20527,2261.4,2261.2,3.63778505]
[1625461136376,1.0,2261.3,2261.2,3.63778505]
[1625461138829,1.20527,2261.4,2261.2,3.63778505]
[1625461138929,1.0,2261.3,2261.2,3.63778505]
[1625461140182,1.0,2261.3,2261.2,3.58488505]
[1625461140283,2.20527,2261.4,2261.2,3.58488505]
[1625461143652,2.20527,2261.4,2261.2,1.37961505]
[1625461153879,2.20527,2261.4,2261.2,1.32761505]
[1625461154130,2.20527,2261.4,2261.2,1.21771505]
[1625461154329,2.20527,2261.4,2261.2,1.15261505]
[1625461154530,2.20527,2261.4,2261.2,1.09741505]
[1625461154631,2.20527,2261.4,2261.2,1.03561505]
[1625461154831,2.20527,2261.4,2261.2,0.97901505]
[1625461155031,2.20527,2261.4,2261.2,0.91591505]
[1625461155130,2.20527,2261.4,2261.2,0.85291505]
[1625461157590,2.20527,2261.4,2261.2,0.80051505]
[1625461157699,2.20527,2261.4,2261.2,0.73751505]
[1625461158404,2.20527,2261.4,2261.2,0.67441505]
[1625461158556,2.20527,2261.4,2261.2,0.61121505]
[1625461158655,2.20527,2261.4,2261.2,0.54841505]
[1625461158804,2.20527,2261.4,2261.2,0.48531505]
[1625461159003,2.20527,2261.4,2261.2,0.40231505]
[1625461159105,2.20527,2261.4,2261.2,0.34561505]
[1625461160761,5.33927,2261.4,2261.2,1.505e-05]
[1625461160960,5.33927,2261.4,2260.3,15.99034414]
[1625461161474,2.20527,2260.5,2260.4,2.20527]
[1625461163133,3.10227,2260.5,2260.4,2.20527]
[1625461163232,2.20527,2260.5,2260.4,2.20527]
[1625461163481,4.41054,2260.5,2260.4,2.20527]
[1625461168255,4.41054,2260.5,2260.4,5.06107]
[1625461168460,0.8959,2261.3,2260.4,5.06107]
[1625461168559,1.30369846,2261.4,2260.4,5.06107]
[1625461168760,1.3035527,2261.6,2260.4,5.06107]
[1625461169059,1.3035527,2261.6,2260.9,53.1276]
[1625461169157,1.3035527,2261.6,2260.9,56.2846]
[1625461169559,2.20527,2261.3,2261.2,2.20527]
[1625461171567,4.41054,2261.3,2261.2,2.20527]
[1625461179253,5.41054,2261.3,2261.2,2.20527]
[1625461179557,4.41054,2261.3,2261.2,2.20527]
[1625461179653,43.17124,2261.3,2261.2,2.20527]
[1625461180155,4.41054,2261.3,2261.2,2.20527]
[1625461190835,4.41054,2261.3,2261.2,3.50943686]
[1625461195498,2.30509419,2262.1,2261.2,3.50943686]
[1625461195599,1.73322662,2262.2,2261.3,5.0]
[1625461195699,1.73322662,2262.2,2261.3,5.8726]
[1625461195801,1.73322662,2262.2,2262.1,4.41054]
[1625461195906,1.73322662,2262.2,2262.1,11.73054]
[1625461196210,1.73322662,2262.2,2262.1,62.61694]
[1625461196312,4.759,2262.7,2262.1,62.61694]
[1625461196408,2.60958022,2263.0,2262.1,62.61694]
[1625461196509,2.60958022,2263.0,2262.1,78.681294]
[1625461196814,2.20527,2263.4,2262.1,78.681294]
[1625461196960,2.20527,2263.4,2262.1,73.681294]
[1625461197811,2.20527,2263.4,2263.3,4.41054]
[1625461197913,2.20527,2263.4,2263.3,7.74224]
[1625461198011,3.20527,2263.4,2263.3,7.74224]
[1625461198113,3.20527,2263.4,2263.3,5.53697]
[1625461198465,7.96427,2263.4,2263.3,5.53697]
[1625461198563,46.26587,2263.4,2263.3,5.53697]
[1625461198664,7.96427,2263.4,2263.3,5.53697]
[1625461198815,10.57054966,2263.4,2263.3,5.53697]
[1625461199318,7.96427,2263.4,2263.3,5.53697]
[1625461199416,7.96427,2263.4,2263.3,2.20527]
[1625461200272,7.96427,2263.4,2262.9,2.20527]
[1625461200773,10.56998835,2263.4,2262.9,2.20527]
[1625461201125,2.60571977,2263.3,2262.9,2.20527]
[1625461201227,1.0,2263.2,2262.9,2.20527]
[1625461201373,1.8883,2263.2,2262.2,15.0084]
[1625461201828,2.20527,2262.4,2262.3,2.20527]
[1625461201946,47.29637,2262.4,2262.3,2.20527]
[1625461202038,47.29637,2262.4,2262.2,15.0084]
[1625461202240,47.29637,2262.4,2262.0,2.20527]
[1625461202578,48.18347,2262.4,2262.0,2.20527]
[1625461202878,48.18347,2262.4,2261.1,2.60093438]
[1625461203178,48.18347,2262.4,2260.9,2.6022096]
[1625461203782,2.20527,2261.5,2261.4,2.20527]
[1625461203882,6.09187,2261.5,2261.4,2.20527]
[1625461203991,60.95397,2261.5,2261.4,2.20527]
[1625461205533,60.95397,2261.5,2261.2,2.20527]
[1625461205749,60.95397,2261.5,2260.5,16.36899326]
[1625461205843,2.20527,2260.8,2260.6,2.20527]
[1625461205951,5.08347,2260.8,2260.6,2.20527]
[1625461206042,1.0,2260.7,2260.6,2.20527]
[1625461206435,42.5791,2260.7,2260.6,2.20527]
[1625461207587,41.5791,2260.7,2260.6,2.20527]
[1625461207689,42.5791,2260.7,2260.6,2.20527]
[1625461209798,42.5791,2260.7,2260.6,2.12707]
[1625461209993,42.5791,2260.7,2260.0,0.05]
[1625461210792,1.0,2260.7,2260.0,0.05]
[1625461211196,1.0,2260.7,2260.0,2.6569981]
[1625461211845,1.0,2260.7,2260.3,2.20527]
[1625461212346,2.20527,2260.8,2260.3,4.85537]
[1625461213907,3.20527,2260.8,2260.6,2.20527]
[1625461215052,2.20527,2260.8,2260.6,2.20527]
[1625461215755,1.0,2261.0,2260.6,2.20527]
[1625461215955,2.20527,2261.3,2260.9,2.20527]
[1625461216054,2.20527,2261.3,2260.9,4.53467]
[1625461216557,7.36520723,2262.4,2260.9,4.53467]
[1625461217014,7.36520723,2262.4,2260.9,9.53467]
[1625461217114,4.759,2262.4,2260.9,9.53467]
[1625461217416,2.60604429,2262.5,2260.9,9.53467]
[1625461217616,1.0,2262.6,2261.0,16.099965]
[1625461217768,1.0,2262.6,2261.0,16.23088854]
[1625461217867,3.20527,2262.6,2262.5,2.20527]
[1625461217969,3.20527,2262.6,2262.5,4.89757]
[1625461218678,1.0,2262.6,2262.5,4.89757]
[1625461219930,5.41054,2262.6,2262.5,4.89757]
[1625461220233,8.24774,2262.6,2262.5,2.20527]
[1625461222466,5.41054,2262.6,2262.5,2.20527]
[1625461225701,7.87684,2262.6,2262.5,2.20527]
[1625461226753,7.87684,2262.6,2262.3,2.20527]
[1625461226854,7.87684,2262.6,2261.1,14.5808]
[1625461227357,47.7537,2261.9,2261.1,14.5808]
[1625461227455,49.971,2261.9,2261.1,14.5808]
[1625461227656,49.971,2261.9,2260.5,2.59994764]
[1625461227956,2.20527,2261.4,2261.2,2.20527]
[1625461228158,4.77847,2261.4,2261.2,2.20527]
[1625461228707,1.0,2261.3,2261.2,2.20527]
[1625461234234,4.1481,2261.3,2261.2,2.20527]
[1625461236739,4.1481,2261.3,2260.0,2.65573847]
[1625461237239,1.0,2261.3,2260.0,2.65573847]
[1625461237689,1.0,2261.3,2260.1,15.936603]
[1625461237789,1.0,2261.3,2260.1,18.205003]
[1625461238041,1.0,2261.3,2261.0,2.20527]
[1625461240046,2.20527,2261.1,2261.0,2.20527]
[1625461240144,3.20527,2261.1,2261.0,2.20527]
[1625461242250,2.20527,2261.1,2261.0,2.20527]
[1625461243367,2.20527,2261.4,2261.0,2.20527]
[1625461243457,2.20527,2261.4,2261.0,5.01307]
[1625461244054,2.20527,2261.4,2261.3,2.20527]
[1625461244453,1.0,2261.8,2261.3,2.20527]
[1625461244553,7.36309099,2262.3,2261.3,2.20527]
[1625461244955,4.759,2262.3,2261.3,2.20527]
[1625461245509,1.0,2262.2,2261.3,2.20527]
[1625461246115,2.20527,2261.7,2261.6,2.20527]
[1625461246217,3.20527,2261.7,2261.6,2.20527]
[1625461248075,5.41054,2261.7,2261.6,2.20527]
[1625461248166,7.79334,2261.7,2261.6,7e-05]
[1625461248272,7.79334,2261.7,2260.0,2.6554833]
[1625461248477,7.79334,2261.7,2260.0,0.05]
[1625461248876,7.79334,2261.7,2260.1,15.98339]
[1625461249328,10.39324916,2261.7,2260.1,15.98339]
[1625461250130,2.20527,2260.5,2260.4,2.20527]
[1625461250690,3.20527,2260.5,2260.4,2.20527]
[1625461251992,6.59937,2260.5,2260.2,2.20527]
[1625461252190,2.20527,2260.3,2260.2,2.20527]
[1625461252289,3.20527,2260.3,2260.2,2.20527]
[1625461252591,3.20527,2260.3,2260.0,0.05]
[1625461252592,49.70517,2260.3,2260.0,0.05]
[1625461254242,2.20527,2260.1,2260.0,0.05]
[1625461254343,3.20527,2260.1,2260.0,0.05]
[1625461257347,44.51957,2260.1,2260.0,0.05]
[1625461259855,44.51957,2260.1,2258.7,13.7864]
[1625461259959,49.51957,2260.1,2258.5,2.60256029]
[1625461260256,2.20527,2258.6,2258.5,2.20527]
[1625461263211,1.0,2259.2,2258.5,2.20527]
[1625461263408,1.0,2259.2,2258.5,5.49577]
[1625461263507,41.3143,2260.1,2258.5,5.49577]
[1625461264212,2.20527,2259.2,2259.0,2.20527]
[1625461265717,1.0,2259.1,2259.0,2.20527]
[1625461265819,1.8761,2259.1,2259.0,2.20527]
[1625461266220,55.02737,2259.1,2258.5,4.41054]
[1625461266429,4.08137,2259.1,2258.5,4.41054]
[1625461268236,2.20527,2258.6,2258.5,4.41054]
[1625461268333,5.41054,2258.6,2258.5,4.41054]
[1625461268935,4.41054,2258.6,2258.5,4.41054]
[1625461269136,5.41054,2258.6,2258.5,4.41054]
[1625461269336,4.41054,2258.6,2258.5,4.41054]
[1625461270140,0.8773,2259.7,2258.5,4.41054]
[1625461270243,0.8773,2259.7,2259.6,2.20527]
[1625461270355,0.8773,2259.7,2259.6,5.23997]
[1625461270586,2.20527,2259.9,2259.6,5.23997]
[1625461270940,2.57598115,2261.1,2259.8,50.3669]
[1625461271242,1.0,2261.0,2259.8,50.3669]
[1625461271339,1.0,2261.0,2259.6,5.23997]
[1625461271548,1.0,2261.0,2259.7,16.102888]
[1625461271840,1.0,2261.0,2259.6,5.23997]
[1625461271841,1.89,2261.0,2259.6,5.23997]
[1625461271942,1.0,2261.0,2259.6,5.23997]
[1625461272291,2.20527,2260.4,2260.2,2.20527]
[1625461272391,2.20527,2260.4,2260.2,5.03737]
[1625461272690,1.0,2261.0,2260.2,5.03737]
[1625461272893,13.9881,2261.5,2260.2,5.03737]
[1625461272993,1.0,2261.4,2260.2,5.03737]
[1625461273195,1.0,2261.4,2260.3,16.057928]
[1625461273747,26.0,2261.2,2260.3,16.057928]
[1625461274247,27.20527,2261.2,2261.1,2.20527]
[1625461274347,27.20527,2261.2,2261.1,5.40017]
[1625461275449,27.20527,2261.2,2261.1,3.1949]
[1625461275548,27.20527,2261.2,2259.1,10.22600975]
[1625461275648,30.77627,2261.2,2259.1,10.22600975]
[1625461275750,30.77627,2261.2,2259.1,7.6323]
[1625461275951,31.65917,2261.2,2259.1,2.6323]
[1625461276150,31.65917,2261.2,2259.2,16.00743]
[1625461276301,2.20527,2260.3,2260.2,2.20527]
[1625461276701,3.20527,2260.3,2260.2,2.20527]
[1625461277102,2.20527,2260.3,2259.0,14.8423]
[1625461277403,2.20527,2260.3,2258.6,7.59433567]
[1625461277702,2.20527,2260.3,2258.7,16.036169]
[1625461277802,2.20527,2260.3,2258.7,19.496769]
[1625461278304,4.41054,2260.3,2260.2,2.20527]
[1625461284115,5.41054,2260.3,2260.2,2.20527]
[1625461289489,4.41054,2260.3,2260.2,2.20527]
[1625461290391,2.20527,2261.0,2260.2,2.20527]
[1625461290494,3.20527,2261.0,2260.2,2.20527]
[1625461292396,3.20527,2261.0,2260.7,2.20527]
[1625461292496,3.20527,2261.0,2260.7,4.83637]
[1625461294350,2.20527,2261.0,2260.7,4.83637]
[1625461294452,2.20527,2261.0,2260.9,2.20527]
[1625461295153,2.58616897,2262.5,2260.9,2.20527]
[1625461295252,28.2771,2262.9,2260.9,2.20527]
[1625461295253,3.4674448,2262.6,2260.9,2.20527]
[1625461295352,2.5869448,2262.6,2260.9,2.20527]
[1625461295554,1.0,2262.5,2260.9,2.20527]
[1625461296361,1.8924,2262.5,2260.9,2.20527]
[1625461296461,2.20527,2261.6,2261.3,2.20527]
[1625461296561,2.20527,2261.6,2261.3,5.72407]
[1625461298417,2.20527,2261.6,2261.5,2.20527]
[1625461299569,1.0,2262.7,2261.5,2.20527]
[1625461300384,2.20527,2262.4,2262.3,2.20527]
[1625461300485,2.20527,2262.4,2262.3,4.40167]
[1625461301236,3.20527,2262.4,2262.3,4.40167]
[1625461301737,2.20527,2262.4,2262.3,4.40167]
[1625461301944,3.20527,2262.4,2262.3,4.40167]
[1625461302393,5.41054,2262.4,2262.3,4.40167]
[1625461302595,4.41054,2262.4,2262.3,4.40167]
[1625461302945,5.41054,2262.4,2262.3,4.40167]
[1625461303145,4.41054,2262.4,2262.3,4.40167]
[1625461307398,2.20527,2262.4,2262.3,4.40167]
[1625461308249,2.20527,2262.4,2262.3,20.348244]
[1625461308350,13.9647,2263.8,2262.3,20.348244]
[1625461308454,13.9647,2263.8,2263.4,2.20527]
[1625461308455,2.20527,2263.5,2263.4,2.20527]
[1625461308550,2.20527,2263.5,2263.4,4.80107]
[1625461309353,3.20527,2263.5,2263.4,4.80107]
[1625461310107,2.20527,2263.5,2263.4,4.80107]
[1625461310502,4.41054,2263.5,2263.4,4.80107]
[1625461310854,5.41054,2263.5,2263.4,4.80107]
[1625461313210,5.41054,2263.5,2263.4,2.5958]
[1625461313407,5.41054,2263.5,2262.9,2.20527]
[1625461314465,3.20527,2263.5,2263.2,2.20527]
[1625461314564,3.20527,2263.5,2262.9,2.20527]
[1625461316467,2.20527,2263.0,2262.9,4.41054]
[1625461318532,4.41054,2263.5,2262.9,20.399402]
[1625461318633,4.41054,2263.5,2262.9,22.605002]
[1625461320446,5.41054,2263.5,2262.9,22.605002]
[1625461320545,5.41054,2263.5,2263.4,2.20527]
[1625461320745,4.41054,2263.5,2263.4,2.20527]
[1625461322697,4.41054,2263.5,2263.4,4.93897]
[1625461323196,1.0,2263.7,2263.4,4.93897]
[1625461324551,1.0,2263.7,2263.6,2.20527]
[1625461328775,2.20527,2264.2,2263.6,2.20527]
[1625461328876,1.0,2264.1,2263.6,2.20527]
[1625461330597,1.0,2264.1,2264.0,2.20527]
[1625461330689,1.0,2264.1,2264.0,5.59457]
[1625461332153,2.20527,2264.2,2264.0,5.59457]
[1625461332253,1.0,2264.6,2264.0,5.59457]
[1625461332654,1.0,2264.6,2264.5,4.41054]
[1625461332750,1.0,2264.6,2264.5,7.88244]
[1625461334001,1.0,2264.9,2264.5,7.88244]
[1625461334603,1.0,2264.9,2264.8,2.20527]
[1625461335103,1.0,2264.9,2264.8,1.15851611]
[1625461337764,1.0,2264.9,2263.4,2.7337]
[1625461337862,1.0,2264.9,2262.7,13.7595]
[1625461337960,4.4461,2264.9,2262.7,13.7595]
[1625461338714,2.20527,2263.3,2263.2,2.20527]
[1625461345449,2.20527,2263.8,2263.2,2.20527]
[1625461346248,1.0,2264.8,2263.2,2.20527]
[1625461346699,1.0,2264.8,2263.0,7.20527]
[1625461346700,2.20527,2264.4,2264.2,2.20527]
[1625461346796,1.0,2264.3,2264.2,5.37337]
[1625461349150,2.20527,2264.4,2264.2,5.37337]
[1625461349601,3.20527,2264.4,2264.2,5.37337]
[1625461351152,2.20527,2264.4,2264.2,5.37337]
[1625461351353,3.20527,2264.4,2264.2,5.37337]
[1625461353907,1.0,2264.4,2264.2,5.37337]
[1625461354111,2.20527,2264.6,2264.2,5.37337]
[1625461354309,3.20527,2264.6,2264.2,5.37337]
[1625461354711,1.0,2264.6,2264.5,2.20527]
[1625461354811,2.20527,2265.5,2264.5,2.20527]
[1625461355413,1.0,2265.4,2264.6,42.5696]
[1625461356565,1.0,2265.4,2264.5,2.20527]
[1625461356766,1.0,2265.4,2265.3,4.41054]
[1625461358269,1.0,2265.4,2265.3,7.87584]
[1625461359020,2.20527,2265.5,2265.3,7.87584]
[1625461363251,3.20527,2265.5,2265.3,5.67057]
[1625461363453,3.20527,2265.5,2265.3,2.20527]
[1625461363953,3.20527,2265.5,2263.7,14.7136]
[1625461364052,6.52827,2265.5,2263.7,14.7136]
[1625461364657,6.52827,2265.5,2263.8,16.027186]
[1625461364754,6.52827,2265.5,2264.5,2.20527]
[1625461364755,2.20527,2264.7,2264.5,2.20527]
[1625461364858,6.40447,2264.7,2264.5,2.20527]
[1625461365156,5.40447,2264.7,2264.5,2.20527]
[1625461365556,3.1992,2264.7,2264.5,2.20527]
[1625461365909,1.0,2265.3,2264.5,2.20527]
[1625461366107,1.0,2265.3,2264.5,4.89827]
[1625461366810,2.20527,2265.2,2265.1,4.77827]
[1625461367058,3.20527,2265.2,2265.1,4.77827]
[1625461368567,2.20527,2265.2,2265.1,4.77827]
[1625461368767,2.20527,2265.2,2265.1,6.98354]
[1625461371895,3.20527,2265.2,2265.1,6.98354]
[1625461372390,2.20527,2265.2,2265.1,6.98354]
[1625461377716,1.0,2265.4,2265.1,6.98354]
[1625461378770,2.20527,2265.5,2265.1,6.98354]
[1625461378879,2.20527,2265.5,2265.4,2.20527]
[1625461383279,2.20527,2265.7,2265.4,2.20527]
[1625461384830,2.20527,2265.7,2265.6,2.20527]
[1625461384930,2.20527,2265.7,2265.6,5.73837]
[1625461387411,2.20527,2265.7,2265.6,21.649066]
[1625461389465,2.20527,2266.2,2265.6,21.649066]
[1625461389570,1.0,2266.5,2265.6,26.649066]
[1625461389669,1.48436085,2267.3,2265.6,26.649066]
[1625461389767,1.48436085,2267.3,2265.7,1.0]
[1625461390068,1.48436085,2267.3,2265.8,16.047874]
[1625461390168,1.48436085,2267.3,2266.5,52.1822]
[1625461390268,2.58441349,2267.9,2266.5,52.1822]
[1625461390369,2.58441349,2267.9,2266.6,1.0]
[1625461390470,2.58441349,2267.9,2266.6,16.977877]
[1625461390868,2.20527,2267.2,2267.1,2.20527]
[1625461390969,2.20527,2267.2,2267.1,5.20767]
[1625461391871,2.20527,2267.2,2267.1,6.20767]
[1625461394775,59.6273,2268.1,2267.1,6.20767]
[1625461394874,2.20527,2267.7,2267.5,2.20527]
[1625461397029,2.20527,2267.7,2267.6,2.20527]
[1625461397127,2.20527,2267.7,2267.6,4.81607]
[1625461401544,46.92577,2267.7,2267.6,4.81607]
[1625461401850,46.92577,2267.7,2266.1,14.9564]
[1625461402047,49.44087,2267.7,2266.1,14.9564]
[1625461402594,49.44087,2267.7,2266.2,1.0]
[1625461403048,2.20527,2266.7,2266.6,2.20527]
[1625461403246,1.20527,2266.7,2266.6,2.20527]
[1625461403347,2.20527,2266.7,2266.6,2.20527]
[1625461403754,1.20527,2266.7,2266.6,2.20527]
[1625461404404,2.20527,2266.7,2266.6,2.20527]
[1625461407518,1.20527,2266.7,2266.6,2.20527]
[1625461411832,2.20527,2266.8,2266.6,2.20527]
[1625461411931,1.0,2267.3,2266.6,2.20527]
[1625461413081,1.0,2267.3,2267.2,4.41054]
[1625461413181,1.0,2267.3,2267.2,7.75114]
[1625461413836,2.20527,2267.4,2267.2,7.75114]
[1625461414891,3.20527,2267.4,2267.2,7.75114]
[1625461419773,2.20527,2267.4,2267.2,7.75114]
[1625461420577,3.20527,2267.4,2267.2,7.75114]
[1625461423939,6.33367,2267.4,2267.2,4.41054]
[1625461424348,6.33367,2267.4,2266.1,14.9564]
[1625461425052,6.33367,2267.4,2266.2,16.021638]
[1625461425151,2.20527,2267.1,2266.9,2.20527]
[1625461425251,1.0,2267.0,2266.9,2.20527]
[1625461426257,44.132,2267.0,2266.9,2.20527]
[1625461426758,44.132,2267.0,2266.1,14.9564]
[1625461427163,2.20527,2266.7,2266.4,2.20527]
[1625461427262,1.0,2266.6,2266.4,2.20527]
[1625461431836,3.4964,2266.6,2266.4,2.20527]
[1625461434793,3.4964,2266.6,2266.2,2.20527]
[1625461435249,2.20527,2266.3,2266.2,2.20527]
[1625461435349,3.20527,2266.3,2266.2,2.20527]
[1625461438053,1.0,2266.3,2266.2,2.20527]
[1625461439269,3.20527,2266.3,2266.2,2.20527]
[1625461439364,53.15597,2266.3,2266.2,2.20527]
[1625461440217,3.20527,2266.3,2266.2,2.20527]
[1625461442968,1.0,2266.3,2266.2,2.20527]
[1625461443072,1.0,2266.6,2266.2,2.20527]